bitfinex-derivatives/quotes_ETHF0:USTF0_20240818
["timestamp","ask_amount","ask_price","bid_price","bid_amount"]
[1724008002936,13.46134,2662.1,2662.0,0.00391701]
[1724008003139,13.80774,2662.1,2662.0,0.00391701]
[1724008004046,13.46134,2662.1,2662.0,0.00391701]
[1724008004341,6.58357,2662.1,2662.0,0.00391701]
[1724008005243,8.46134,2662.1,2662.0,0.00391701]
[1724008005547,6.58357,2662.1,2662.0,0.00391701]
[1724008006641,1.87777,2662.1,2662.0,0.00391701]
[1724008008250,8.46134,2662.1,2662.0,0.00391701]
[1724008008549,8.81834,2662.1,2662.0,0.00391701]
[1724008008752,13.81834,2662.1,2662.0,0.00391701]
[1724008010544,15.69611,2662.1,2662.0,0.00391701]
[1724008010736,4.70482,2661.9,2661.8,0.0056409]
[1724008010935,7.91262,2661.9,2661.8,0.0056409]
[1724008011149,16.66942,2661.9,2661.8,0.0056409]
[1724008011343,17.01552,2661.9,2661.8,0.0056409]
[1724008011649,17.01552,2661.9,2661.8,0.00925215]
[1724008013039,12.01552,2661.9,2661.8,0.00925215]
[1724008014551,5.98081,2661.9,2661.8,0.00925215]
[1724008014756,1.87791,2661.9,2661.8,0.00925215]
[1724008015051,1.87791,2661.9,2661.8,0.35735215]
[1724008015449,1.87791,2661.9,2661.8,1.30635215]
[1724008015649,1.87788,2662.0,2661.8,3.18433215]
[1724008015848,0.949,2662.1,2661.9,0.3366]
[1724008016055,1.87784,2662.0,2661.9,0.3366]
[1724008016249,3.75568,2662.0,2661.9,0.3366]
[1724008016451,8.46148,2662.0,2661.9,0.3366]
[1724008016655,8.82428,2662.0,2661.9,0.3366]
[1724008016956,5.63373,2661.9,2661.8,0.00925215]
[1724008017253,1.87807,2661.7,2661.3,0.949]
[1724008017447,1.87812,2661.6,2661.4,0.7016]
[1724008017942,1.87819,2661.5,2661.4,1.6506]
[1724008018145,1.87819,2661.5,2661.4,1.65487937]
[1724008018345,10.72178,2661.5,2661.4,0.00427937]
[1724008018653,10.72178,2661.5,2661.2,0.0056409]
[1724008018654,3.75666,2661.3,2661.2,0.0056409]
[1724008018843,4.70566,2661.3,2661.2,0.0056409]
[1724008019047,8.46326,2661.3,2661.2,0.0056409]
[1724008019759,8.46718615,2661.3,2661.2,0.00883797]
[1724008019944,5.63985615,2661.3,2661.2,0.00883797]
[1724008020355,1.88225615,2661.3,2661.2,0.00883797]
[1724008020565,5.63985615,2661.3,2661.2,0.00883797]
[1724008021348,7.51818615,2661.3,2661.2,0.00883797]
[1724008021949,8.46718615,2661.3,2661.2,0.00883797]
[1724008022756,8.46718615,2661.3,2661.2,0.36363797]
[1724008025358,1.88225615,2661.3,2661.2,0.36363797]
[1724008026258,5.09005615,2661.3,2661.2,0.36363797]
[1724008026951,6.03905615,2661.3,2661.2,0.36363797]
[1724008030562,2.83125615,2661.3,2661.2,0.36363797]
[1724008030862,6.03905615,2661.3,2661.2,0.36363797]
[1724008038858,2.83125615,2661.3,2661.2,0.36363797]
[1724008039966,4.70958615,2661.3,2661.2,0.00883797]
[1724008040166,4.70958615,2661.3,2661.2,0.37703797]
[1724008043369,1.87861,2660.9,2660.8,3.2078]
[1724008043564,1.87861,2660.9,2660.8,3.5785]
[1724008043565,2.82761,2660.9,2660.8,3.5785]
[1724008044469,2.82761,2660.9,2660.8,3.58113884]
[1724008044773,1.87861,2660.9,2660.8,3.58113884]
[1724008046064,0.949,2661.0,2660.8,6.40876884]
[1724008046065,1.8786,2661.0,2660.8,6.40876884]
[1724008046264,1.8786,2661.0,2660.9,0.6889]
[1724008046476,1.8786,2661.0,2660.9,2.56751]
[1724008046863,1.8786,2661.0,2660.9,0.6889]
[1724008052170,1.8786,2661.0,2660.9,2.56751]
[1724008052480,1.8786,2661.0,2660.9,0.6889]
[1724008052686,1.8786,2661.0,2660.9,2.56751]
[1724008052981,1.8786,2661.0,2660.9,0.6889]
[1724008055980,0.00392615,2661.3,2661.2,1.8784]
[1724008056177,0.00392615,2661.3,2661.2,2.8274]
[1724008056378,0.00392615,2661.3,2661.2,6.585]
[1724008056575,0.00392615,2661.3,2661.2,6.9218]
[1724008062972,1.88225615,2661.3,2661.2,5.0434]
[1724008063177,0.00392615,2661.3,2661.2,5.9728]
[1724008073491,0.00392615,2661.3,2661.2,2.2152]
[1724008079798,0.00392615,2661.3,2661.2,5.423]
[1724008084696,0.00392615,2661.3,2661.2,6.372]
[1724008099094,0.3543409,2661.7,2661.2,8.2512]
[1724008099394,0.3543409,2661.7,2661.6,1.87812]
[1724008100094,0.35837892,2661.7,2661.6,1.87812]
[1724008101593,0.35837892,2661.7,2661.3,0.9792424]
[1724008101803,1.30737892,2661.7,2661.2,4.1870424]
[1724008101999,1.87812,2661.6,2661.4,1.87821]
[1724008102705,1.87812,2661.6,2661.4,2.22701]
[1724008106800,1.87812,2661.6,2661.5,1.87819]
[1724008107106,3.18546892,2661.7,2661.5,1.87819]
[1724008107304,0.35837892,2661.7,2661.6,1.87812]
[1724008108497,0.00967892,2661.7,2661.6,1.87812]
[1724008110709,0.00967892,2661.7,2661.6,2.24812]
[1724008119914,0.00967892,2661.7,2661.4,4.5056]
[1724008119915,0.95867892,2661.7,2661.4,4.5056]
[1724008120227,0.95867892,2661.7,2661.4,4.8605]
[1724008120228,2.83678892,2661.7,2661.4,4.8605]
[1724008120422,2.83678892,2661.7,2661.5,1.87816]
[1724008122024,0.95867892,2661.7,2661.5,1.87816]
[1724008123519,2.83672892,2661.7,2661.5,1.87816]
[1724008130717,0.95867892,2661.7,2661.4,0.7037]
[1724008130919,1.87819,2661.5,2661.4,0.3488]
[1724008131119,1.87819,2661.5,2661.4,2.22706]
[1724008131331,2.22439,2661.5,2661.4,2.22706]
[1724008131825,0.3462,2661.5,2661.4,2.22706]
[1724008135832,0.00967892,2661.7,2661.6,1.87812]
[1724008137025,0.34807892,2661.7,2661.6,1.87812]
[1724008137226,2.22612892,2661.7,2661.6,1.87812]
[1724008137633,0.34807892,2661.7,2661.6,1.87812]
[1724008139937,0.00967892,2661.7,2661.6,1.87812]
[1724008145945,1.88775892,2661.7,2661.4,0.6983]
[1724008146135,1.88775892,2661.7,2661.5,1.87813]
[1724008146337,1.88775892,2661.7,2661.6,1.87812]
[1724008146540,0.00967892,2661.7,2661.6,1.87812]
[1724008148239,1.87819,2661.5,2661.4,2.57656]
[1724008148459,2.82719,2661.5,2661.4,2.57656]
[1724008149041,0.949,2661.5,2661.4,2.57656]
[1724008149243,2.82719,2661.5,2661.4,2.57656]
[1724008149841,2.82719,2661.5,2661.4,0.6983]
[1724008150241,2.82719,2661.5,2661.4,2.57656]
[1724008151044,2.82719,2661.5,2661.4,0.6983]
[1724008151241,2.82719,2661.5,2661.4,2.57656]
[1724008151844,0.949,2661.5,2661.4,2.57656]
[1724008153343,2.82719,2661.5,2661.4,2.57656]
[1724008158653,1.87834,2661.3,2661.2,1.87837]
[1724008158853,1.87833,2661.3,2661.2,2.24427]
[1724008160052,1.87831,2661.4,2661.2,2.24427]
[1724008160556,1.87831,2661.4,2661.3,1.87833]
[1724008161247,1.87831,2661.4,2661.2,3.19325]
[1724008162257,1.87831,2661.4,2661.3,1.87833]
[1724008162763,1.87831,2661.4,2661.2,3.19325]
[1724008163462,1.87833,2661.3,2661.2,3.19325]
[1724008164444,1.87831,2661.4,2661.2,3.19325]
[1724008165845,1.87833,2661.3,2661.2,3.19325]
[1724008166054,0.357,2661.3,2660.9,1.87861]
[1724008166353,1.87854,2661.0,2660.9,0.3429]
[1724008166755,1.87861,2660.9,2660.8,0.34503884]
[1724008167257,5.63701,2660.9,2660.8,0.00263884]
[1724008169654,8.84481,2660.9,2660.8,0.00263884]
[1724008172761,10.72342,2660.9,2660.8,0.00263884]
[1724008173068,3.7575,2660.7,2660.6,0.0056409]
[1724008173259,4.7065,2660.7,2660.6,0.0056409]
[1724008173563,8.4649,2660.7,2660.6,0.0056409]
[1724008173979,8.4649,2660.7,2660.6,0.00870231]
[1724008175762,11.6727,2660.7,2660.6,0.00870231]
[1724008178865,9.79395,2660.7,2660.6,0.00870231]
[1724008187664,6.58615,2660.7,2660.6,0.00870231]
[1724008187873,9.79395,2660.7,2660.6,0.00870231]
[1724008188468,11.6727,2660.7,2660.6,0.00870231]
[1724008188770,12.0327,2660.7,2660.6,0.00870231]
[1724008198375,1.87904,2660.3,2660.2,0.3727]
[1724008198581,6.03584,2660.3,2660.2,0.3727]
[1724008198896,9.79504,2660.3,2660.2,0.3727]
[1724008199077,6.03584,2660.3,2660.2,0.3727]
[1724008199297,6.03584,2660.3,2660.2,0.37602563]
[1724008201082,9.79504,2660.3,2660.2,0.37602563]
[1724008201377,6.03584,2660.3,2660.2,0.37602563]
[1724008203876,0.949,2660.3,2660.2,0.37602563]
[1724008204580,0.949,2660.3,2660.2,2.25513563]
[1724008204789,0.949,2660.5,2660.3,1.87899]
[1724008204977,0.949,2660.5,2660.4,0.7414]
[1724008206779,0.949,2660.5,2660.4,2.62037]
[1724008207389,0.949,2660.5,2660.4,0.7414]
[1724008207980,0.949,2660.5,2660.4,2.62037]
[1724008208182,0.949,2660.5,2660.4,0.7414]
[1724008208986,1.87876,2660.7,2660.5,1.87887]
[1724008209289,1.87876,2660.7,2660.4,4.4998]
[1724008209290,0.949,2660.6,2660.4,2.62031]
[1724008209884,2.82783,2660.6,2660.4,2.62031]
[1724008210284,0.949,2660.6,2660.4,2.62031]
[1724008211183,2.82783,2660.6,2660.4,2.62031]
[1724008211383,0.949,2660.6,2660.4,2.62031]
[1724008213683,2.82783,2660.6,2660.4,2.62031]
[1724008213888,0.949,2660.6,2660.4,2.62031]
[1724008214088,2.82788,2660.6,2660.4,0.7414]
[1724008216185,2.82788,2660.6,2660.4,2.62037]
[1724008216828,2.82788,2660.6,2660.4,0.7414]
[1724008217882,1.8789,2660.5,2660.4,0.7414]
[1724008218092,1.8789,2660.5,2660.4,0.3724]
[1724008218290,2.2362,2660.5,2660.4,0.3724]
[1724008222297,1.8789,2660.5,2660.4,0.3724]
[1724008234602,1.87897,2660.4,2660.3,0.3596]
[1724008234797,3.52427,2660.4,2660.3,0.3596]
[1724008246103,3.52427,2660.4,2660.2,0.37022563]
[1724008246104,1.87904,2660.3,2660.2,0.37022563]
[1724008246304,1.87904,2660.3,2660.2,0.00332563]
[1724008246305,7.51728,2660.3,2660.2,0.00332563]
[1724008246500,10.4692723,2660.3,2660.2,0.00332563]
[1724008247011,7.51728,2660.3,2660.2,0.00332563]
[1724008247318,10.47482025,2660.3,2660.2,0.00332563]
[1724008247998,7.51728,2660.3,2660.2,0.00332563]
[1724008249013,10.47429353,2660.3,2660.2,0.00332563]
[1724008249611,7.51728,2660.3,2660.2,0.00332563]
[1724008250208,10.4737127,2660.3,2660.2,0.00332563]
[1724008252713,13.6815127,2660.3,2660.2,0.00332563]
[1724008252917,10.72508,2660.3,2660.2,0.00332563]
[1724008253218,13.6815127,2660.3,2660.2,0.00332563]
[1724008253446,9.9223127,2660.3,2660.2,0.00332563]
[1724008254919,6.96588,2660.3,2660.2,0.00332563]
[1724008255518,10.72508,2660.3,2660.2,0.00332563]
[1724008256512,5.08684,2660.3,2660.2,0.00332563]
[1724008256710,2.82804,2660.3,2660.2,0.00332563]
[1724008265376,0.949,2660.3,2660.2,0.00332563]
[1724008265513,6.1642327,2660.7,2660.2,11.97032563]
[1724008265729,6.03558,2660.7,2660.3,0.949]
[1724008265935,6.03558,2660.7,2660.4,2.22864]
[1724008266134,6.03558,2660.7,2660.5,0.3492]
[1724008266316,4.1568,2660.7,2660.5,0.7006]
[1724008266521,4.1568,2660.7,2660.5,2.57945]
[1724008267913,6.03556,2660.7,2660.5,2.57945]
[1724008268116,4.1568,2660.7,2660.5,0.7006]
[1724008268430,1.87882,2660.6,2660.5,0.7006]
[1724008274322,6.0356,2660.7,2660.5,0.7006]
[1724008275118,2.8278,2660.7,2660.5,0.7006]
[1724008275527,1.87882,2660.6,2660.5,0.7006]
[1724008277739,2.21802,2660.6,2660.5,0.7006]
[1724008278218,5.42582,2660.6,2660.2,0.00332563]
[1724008278333,2.82804,2660.3,2660.2,0.00332563]
[1724008278524,7.91488,2660.3,2660.2,0.00332563]
[1724008278830,11.67408,2660.3,2660.2,0.00332563]
[1724008279336,11.67408,2660.3,2659.2,0.9792424]
[1724008279337,1.87969,2659.4,2659.2,0.9792424]
[1724008279528,1.87965,2659.5,2659.3,0.3541]
[1724008279727,0.949,2659.4,2659.3,0.3541]
[1724008280232,0.95381282,2659.4,2659.3,4.11804766]
[1724008281431,0.95381282,2659.4,2659.3,0.35804766]
[1724008282432,2.83348282,2659.4,2659.3,0.35804766]
[1724008282627,0.95381282,2659.4,2659.3,0.35804766]
[1724008287132,2.83348282,2659.4,2659.3,0.35804766]
[1724008288035,0.95381282,2659.4,2659.3,0.35804766]
[1724008288534,2.83348282,2659.4,2659.3,0.35804766]
[1724008289129,0.95381282,2659.4,2659.3,0.35804766]
[1724008290032,2.83348282,2659.4,2659.3,0.35804766]
[1724008290228,2.83348282,2659.4,2659.3,0.00394766]
[1724008299172,4.71315282,2659.4,2659.3,0.00394766]
[1724008304080,2.83348282,2659.4,2659.3,0.00394766]
[1724008304936,2.83348282,2659.4,2659.3,0.37414766]
[1724008305134,2.83348282,2659.4,2659.3,0.73654766]
[1724008308936,2.83348282,2659.4,2659.3,2.61628766]
[1724008308937,0.00481282,2659.4,2659.3,2.61628766]
[1724008309255,0.95381282,2659.4,2659.3,2.61628766]
[1724008315653,0.00481282,2659.4,2659.3,6.37628766]
[1724008315959,0.00481282,2659.4,2659.3,6.71278766]
[1724008320318,0.0056409,2659.6,2659.3,12.66178766]
[1724008320565,0.949,2660.1,2660.0,1.87922]
[1724008320763,0.949,2660.1,2660.0,1.87925]
[1724008321258,0.95362998,2660.1,2660.0,1.87925]
[1724008321848,0.00462998,2660.1,2660.0,5.63845]
[1724008324067,0.95362998,2660.1,2660.0,5.63845]
[1724008325659,0.95362998,2660.1,2660.0,8.84625]
[1724008326064,0.95362998,2660.1,2660.0,9.20045]
[1724008327958,0.95362998,2660.1,2660.0,5.99265]
[1724008328153,0.95362998,2660.1,2660.0,9.20045]
[1724008331873,0.00462998,2660.1,2660.0,9.20045]
[1724008338363,0.00462998,2660.1,2660.0,5.44125]
[1724008338563,0.00462998,2660.1,2660.0,9.20045]
[1724008338960,0.00462998,2660.1,2660.0,10.14945]
[1724008340172,0.0056409,2660.3,2660.2,1.87911]
[1724008340276,0.0056409,2660.3,2660.2,2.82811]
[1724008340592,0.0056409,2660.3,2660.2,6.58731]
[1724008341173,0.0091862,2660.3,2660.2,6.58731]
[1724008343465,0.0091862,2660.3,2660.2,5.63831]
[1724008345072,0.0091862,2660.3,2660.2,8.84611]
[1724008345477,0.3760862,2660.3,2660.2,5.08691]
[1724008354175,0.0091862,2660.3,2660.2,5.08691]
[1724008354777,0.0091862,2660.3,2660.2,8.84611]
[1724008360084,0.0091862,2660.3,2660.2,5.63831]
[1724008360392,0.0091862,2660.3,2660.2,8.84611]
[1724008364505,0.0091862,2660.3,2660.2,5.08691]
[1724008365390,0.0091862,2660.3,2660.2,6.0661524]
[1724008365989,0.0091862,2660.3,2660.2,2.8583524]
[1724008366185,0.0091862,2660.3,2660.2,6.0661524]
[1724008368208,0.712,2660.7,2660.6,1.87882]
[1724008368409,1.87857,2661.0,2660.6,4.1568]
[1724008368581,1.87857,2661.0,2660.7,0.7175]
[1724008368582,2.23617,2661.0,2660.7,0.7175]
[1724008368783,2.23617,2661.0,2660.8,1.87866]
[1724008369093,0.949,2660.9,2660.8,1.87866]
[1724008372490,0.36116471,2661.0,2660.9,1.87861]
[1724008372697,0.0056409,2661.2,2661.1,1.87847]
[1724008373494,0.0056409,2661.2,2661.1,2.24157]
[1724008373721,0.00911689,2661.2,2661.1,2.24157]
[1724008375995,0.00911689,2661.2,2661.1,2.57927]
[1724008376190,0.00911689,2661.2,2661.1,0.7008]
[1724008376495,5.64515689,2661.2,2660.9,5.08641]
[1724008376684,1.3031,2661.1,2660.9,5.08641]
[1724008377492,1.3031,2661.1,2660.9,1.87861]
[1724008378393,1.3031,2661.1,2660.8,4.1568]
[1724008378394,1.87858,2661.0,2660.8,4.1568]
[1724008378589,2.82758,2661.0,2660.7,2.91591]
[1724008378797,0.3647,2660.9,2660.7,2.91591]
[1724008379501,2.24332,2660.9,2660.7,2.91591]
[1724008379804,2.82768,2660.8,2660.7,0.6992]
[1724008380104,2.82768,2660.8,2660.6,0.0056409]
[1724008380105,1.87875,2660.7,2660.6,0.0056409]
[1724008380298,2.23865,2660.7,2660.6,0.0056409]
[1724008380998,0.3599,2660.7,2660.6,1.8844609]
[1724008381597,0.3599,2660.7,2660.6,2.2424609]
[1724008385301,2.24334,2660.9,2660.7,1.87871]
[1724008385502,2.24334,2660.9,2660.7,2.82771]
[1724008386099,2.24334,2660.9,2660.8,0.3572]
[1724008386520,6.00174,2660.9,2660.8,0.3572]
[1724008387514,0.3647,2660.9,2660.8,2.23588]
[1724008387710,0.3647,2660.9,2660.8,2.59538]
[1724008389114,0.354,2661.0,2660.8,2.59538]
[1724008389415,0.354,2661.0,2660.9,2.82761]
[1724008389614,1.88751689,2661.2,2661.0,1.87853]
[1724008389914,0.00911689,2661.2,2660.9,0.949]
[1724008390304,0.00911689,2661.2,2661.0,1.87854]
[1724008391817,0.00911689,2661.2,2661.0,1.87849]
[1724008392107,1.88752689,2661.2,2661.0,1.87849]
[1724008393003,0.00911689,2661.2,2661.0,1.87849]
[1724008395572,1.88751689,2661.2,2661.0,1.87849]
[1724008396200,0.00911689,2661.2,2661.0,1.87849]
[1724008396911,0.00911689,2661.2,2661.1,0.3677]
[1724008397220,1.88751689,2661.2,2661.1,0.3677]
[1724008400811,0.00911689,2661.2,2661.1,2.24617]
[1724008401111,0.00911689,2661.2,2661.1,2.59357]
[1724008414027,1.88751689,2661.2,2661.1,0.3677]
[1724008415022,0.00911689,2661.2,2661.1,0.3677]
[1724008415225,0.00911689,2661.2,2661.1,5.45397]
[1724008417317,0.00911689,2661.2,2661.1,3.5755]
[1724008417522,0.00911689,2661.2,2661.1,5.45397]
[1724008427523,0.00911689,2661.2,2661.1,2.24617]
[1724008429125,1.88751689,2661.2,2661.1,0.3677]
[1724008429333,1.87847,2661.1,2661.0,4.1568]
[1724008429534,2.58697,2661.1,2661.0,4.1568]
[1724008431326,1.88756689,2661.2,2661.0,6.03534]
[1724008431638,1.88751689,2661.2,2661.1,1.87847]
[1724008431936,0.00911689,2661.2,2661.1,1.87847]
[1724008432738,1.88751689,2661.2,2661.1,1.87847]
[1724008433036,0.00911689,2661.2,2661.1,1.87847]
[1724008443940,0.00911689,2661.2,2661.0,3.2078]
[1724008444165,1.87868,2660.8,2660.7,0.98103332]
[1724008444339,1.87875,2660.7,2660.6,0.0056409]
[1724008444545,9.5327,2660.7,2660.6,0.0056409]
[1724008445745,7.65395,2660.7,2660.6,0.0056409]
[1724008445946,7.65395,2660.7,2660.4,0.949]
[1724008445947,13.983,2660.7,2660.0,0.98103332]
[1724008446146,13.983,2660.7,2659.9,3.18198]
[1724008446147,0.949,2660.3,2659.9,3.18198]
[1724008446344,1.87913,2660.2,2659.9,1.3027]
[1724008446542,2.82808,2660.3,2659.9,3.5228]
[1724008446840,0.3461,2660.2,2659.9,3.5228]
[1724008447046,2.22522,2660.2,2659.9,3.5228]
[1724008447345,2.22522,2660.2,2659.9,3.52281]
[1724008447946,2.22522,2660.2,2660.1,0.949]
[1724008448133,0.3461,2660.2,2660.1,0.949]
[1724008448332,2.22521,2660.2,2660.1,0.949]
[1724008452143,0.3461,2660.2,2660.1,0.949]
[1724008452449,2.22521,2660.2,2660.1,0.949]
[1724008454345,0.3461,2660.2,2660.1,0.949]
[1724008454539,1.87908,2660.3,2660.1,0.949]
[1724008455935,1.87908,2660.3,2660.1,2.82818]
[1724008456141,1.87908,2660.3,2660.1,0.949]
[1724008457545,1.87904,2660.3,2660.1,0.949]
[1724008457944,1.87904,2660.3,2660.2,0.3708]
[1724008460158,2.82801,2660.4,2660.2,0.3708]
[1724008460346,0.949,2660.4,2660.2,0.3708]
[1724008460547,2.82797,2660.4,2660.3,0.3356]
[1724008460855,6.58717,2660.4,2660.3,0.3356]
[1724008462856,4.7082,2660.4,2660.3,0.3356]
[1724008463317,0.3458,2660.5,2660.3,1.2846]
[1724008463318,2.22473,2660.5,2660.3,1.2846]
[1724008463549,0.3458,2660.5,2660.3,3.16364]
[1724008463742,0.3458,2660.5,2660.3,3.50644]
[1724008465558,2.2247,2660.5,2660.3,3.50644]
[1724008466064,2.2247,2660.5,2660.3,2.55744]
[1724008466451,2.2247,2660.5,2660.3,0.6784]
[1724008466960,3.1737,2660.5,2660.3,0.6784]
[1724008468854,1.2948,2660.5,2660.3,2.55742]
[1724008469758,3.17371,2660.5,2660.3,2.55742]
[1724008472061,3.17371,2660.5,2660.3,0.6784]
[1724008472757,3.17371,2660.5,2660.3,2.55743]
[1724008473060,1.2948,2660.5,2660.3,2.55743]
[1724008475860,3.17371,2660.5,2660.3,2.55743]
[1724008477661,1.2948,2660.5,2660.3,2.55743]
[1724008477855,3.17371,2660.5,2660.3,2.55743]
[1724008478758,3.17371,2660.5,2660.3,0.6784]
[1724008479368,3.17371,2660.5,2660.3,2.55744]
[1724008482365,1.3137,2660.7,2660.5,1.87886]
[1724008482668,1.3137,2660.7,2660.6,0.3426]
[1724008482864,1.3137,2660.7,2660.6,0.6821]
[1724008483565,3.19246,2660.7,2660.6,0.6821]
[1724008484071,2.24346,2660.7,2660.6,0.6821]
[1724008485663,0.3647,2660.7,2660.6,0.6821]
[1724008485867,3.19154,2660.8,2660.6,0.6821]
[1724008486964,3.19154,2660.8,2660.6,2.56093]
[1724008486965,1.3128,2660.8,2660.6,2.56093]
[1724008487268,1.3128,2660.8,2660.6,2.56088]
[1724008487269,0.3638,2660.8,2660.6,2.56088]
[1724008493483,0.949,2660.9,2660.8,1.87869]
[1724008493672,2.82752,2661.1,2660.8,1.87869]
[1724008494278,2.82752,2661.1,2660.9,0.3514]
[1724008494976,2.8275,2661.1,2660.9,0.3514]
[1724008495364,0.3472,2661.0,2660.9,0.3514]
[1724008500267,0.949,2661.1,2660.9,0.3514]
[1724008500476,0.00911689,2661.2,2661.1,1.87848]
[1724008500669,0.00911689,2661.2,2661.0,0.949]
[1724008500670,0.00911689,2661.2,2661.0,0.3418]
[1724008500898,0.95811689,2661.2,2660.9,0.3514]
[1724008501074,1.30631689,2661.2,2660.8,0.949]
[1724008501270,1.87862,2661.0,2660.7,1.6447]
[1724008501875,1.30631689,2661.2,2660.8,0.949]
[1724008502068,1.8786,2661.0,2660.9,0.3455]
[1724008502267,1.87869,2660.8,2660.7,0.6957]
[1724008502469,2.57097,2660.9,2660.7,1.0412]
[1724008502668,1.87869,2660.8,2660.7,1.0412]
[1724008503506,2.57097,2660.9,2660.7,0.6873]
[1724008504079,1.87869,2660.8,2660.7,0.6873]
[1724008504883,2.57096,2660.9,2660.7,0.6873]
[1724008507275,1.87869,2660.8,2660.7,0.6873]
[1724008507481,2.57094,2660.9,2660.7,0.6873]
[1724008507877,1.6413,2660.9,2660.4,3.2078]
[1724008508172,1.87883,2660.6,2660.5,0.3417]
[1724008508678,2.22583,2660.6,2660.5,0.3417]
[1724008513755,2.22583,2660.6,2660.2,3.2078]
[1724008513876,2.82804,2660.3,2660.0,4.176]
[1724008514074,1.87932,2659.9,2659.8,0.0056409]
[1724008515481,1.87965,2659.5,2659.3,3.21174766]
[1724008515676,1.87968,2659.4,2659.3,0.00394766]
[1724008515878,2.22828,2659.4,2659.3,0.00394766]
[1724008516877,0.3486,2659.4,2659.3,0.00394766]
[1724008517073,0.0056409,2659.6,2659.3,0.95294766]
[1724008517349,1.8851909,2659.6,2659.4,0.3586]
[1724008517997,0.0056409,2659.6,2659.4,0.3586]
[1724008518183,1.8851809,2659.6,2659.4,0.3586]
[1724008518380,0.0056409,2659.6,2659.4,0.3586]
[1724008520591,1.8851809,2659.6,2659.4,0.3586]
[1724008521185,1.8852209,2659.6,2659.3,0.95294766]
[1724008522282,0.0056409,2659.6,2659.3,2.83266766]
[1724008524391,0.0056409,2659.6,2659.3,0.95294766]
[1724008524585,0.0056409,2659.6,2659.3,2.83263766]
[1724008524787,0.0056409,2659.6,2659.3,0.95294766]
[1724008525096,0.0056409,2659.6,2659.4,1.87967]
[1724008525282,0.0056409,2659.6,2659.5,0.3458]
[1724008525989,1.8851809,2659.6,2659.5,0.3458]
[1724008526187,0.0056409,2659.6,2659.5,0.3458]
[1724008526789,0.0056409,2659.6,2659.5,2.22541]
[1724008527392,0.0056409,2659.6,2659.5,0.3458]
[1724008529897,0.0056409,2659.6,2659.5,2.22541]
[1724008530196,0.0056409,2659.6,2659.5,0.3458]
[1724008531381,0.0056409,2659.6,2659.5,0.692]
[1724008536095,0.0056409,2659.6,2659.5,1.0549]
[1724008538998,2.8341809,2659.6,2659.5,1.0549]
[1724008539226,0.9546409,2659.6,2659.3,0.00394766]
[1724008539488,0.949,2659.4,2659.3,0.00394766]
[1724008539697,2.82868,2659.4,2659.3,0.00394766]
[1724008540696,6.58868,2659.4,2659.1,0.0056409]
[1724008540897,1.87982,2659.2,2659.1,0.0056409]
[1724008541897,1.88294711,2659.2,2659.1,0.01043005]
[1724008544003,0.00312711,2659.2,2659.1,0.01043005]
[1724008544708,1.88294711,2659.2,2659.1,0.01043005]
[1724008554106,0.00312711,2659.2,2659.1,0.01043005]
[1724008554412,1.88294711,2659.2,2659.1,0.01043005]
[1724008554900,0.00312711,2659.2,2659.1,0.01043005]
[1724008555305,1.88294711,2659.2,2659.1,0.01043005]
[1724008555517,0.00312711,2659.2,2659.1,0.01043005]
[1724008555711,0.00312711,2659.2,2659.1,1.89032005]
[1724008560605,0.00312711,2659.2,2659.1,0.01043005]
[1724008567919,0.00312711,2659.2,2659.1,1.89032005]
[1724008573518,0.00312711,2659.2,2659.1,5.65112005]
[1724008574634,0.00312711,2659.2,2659.1,3.77123005]
[1724008576230,0.00312711,2659.2,2659.1,5.65112005]
[1724008577838,0.00312711,2659.2,2659.1,1.89032005]
[1724008578030,0.00312711,2659.2,2659.1,5.65112005]
[1724008580233,0.00312711,2659.2,2659.1,3.77123005]
[1724008582128,0.00312711,2659.2,2659.1,5.65112005]
[1724008582832,0.00312711,2659.2,2659.1,3.77123005]
[1724008583140,0.95212711,2659.2,2659.1,3.77123005]
[1724008583436,0.95212711,2659.2,2659.1,0.01043005]
[1724008583437,6.59274711,2659.2,2659.1,0.01043005]
[1724008583635,6.93834711,2659.2,2659.1,0.01043005]
[1724008586036,8.81816711,2659.2,2659.1,0.01043005]
[1724008589928,0.00312711,2659.2,2659.1,0.01043005]
[1724008590130,0.00312711,2659.2,2659.1,1.89032005]
[1724008590532,0.00312711,2659.2,2659.1,2.25862005]
[1724008590931,0.00312711,2659.2,2659.1,5.46642005]
[1724008591132,0.00312711,2659.2,2659.1,5.80752005]
[1724008592239,0.00312711,2659.2,2659.1,2.59972005]
[1724008594543,0.00312711,2659.2,2659.1,5.80752005]
[1724008595833,0.00312711,2659.2,2659.1,6.78855337]
[1724008596041,0.00312711,2659.2,2659.1,5.80752005]
[1724008596343,0.00312711,2659.2,2659.1,6.78855337]
[1724008596743,0.00312711,2659.2,2659.1,11.49835337]
[1724008596944,0.00312711,2659.2,2659.1,13.38345259]
[1724008597244,0.00312711,2659.2,2659.1,13.38345253]
[1724008597446,0.00312711,2659.2,2659.1,12.39767155]
[1724008597943,0.00312711,2659.2,2659.1,13.38342121]
[1724008598941,0.00312711,2659.2,2659.1,11.50306971]
[1724008599941,0.00312711,2659.2,2659.1,13.38346339]
[1724008600248,0.00312711,2659.2,2659.1,13.38345362]
[1724008600545,0.00312711,2659.2,2659.1,11.50306971]
[1724008604944,0.00312711,2659.2,2659.1,12.39771188]
[1724008605146,0.0056409,2659.6,2659.1,12.39771188]
[1724008605147,0.0056409,2659.6,2659.5,1.87961]
[1724008605452,0.0056409,2659.6,2659.5,5.08741]
[1724008605750,0.0056409,2659.6,2659.5,6.41552911]
[1724008605941,0.0056409,2659.6,2659.5,6.76802911]
[1724008606142,0.00900466,2659.6,2659.5,6.76802911]
[1724008606541,0.00900466,2659.6,2659.5,5.78251]
[1724008607750,0.00900466,2659.6,2659.5,2.57471]
[1724008615259,0.00900466,2659.6,2659.5,5.78251]
[1724008615453,0.00900466,2659.6,2659.5,2.57471]
[1724008620364,0.00900466,2659.6,2659.5,6.73151]
[1724008620864,0.00900466,2659.6,2659.5,12.37112]